Cogmind - Beta 11 X5 @@@ ROGUE MODE // 2021.06.08 @ 15:11:03 Player: alice_fexa Result: Destroyed by D-53 Grenadier with Mini Grenade Launcher Performance ------------- Evolutions (0) 0 Regions Visited (2) 400 Robots Destroyed (18) 90 Value Destroyed (377) 377 Prototype IDs (5) 100 Alien Tech Used (0) 0 Bonus (-839) -839 TOTAL SCORE: 128 Bonus ------- Friendly Fire -839 Cogmind --------- Core Integrity 0/250 Matter 239/300 Energy 240/250 System Corruption 2% Temperature Cool (1) Movement Treading (160) Location -10/Mines Parts ------- > --- POWER (1) -------- Ion Engine > --- PROPULSION (2) --- Light Treads Light Treads > --- UTILITY (2) ------ Heat Sink Large Storage Unit > --- WEAPON (2) ------- EM Pulse Gun Autogun > --- INVENTORY (15) --- Light Ion Engine Light Nuclear Core Light Treads Light Treads Compact Wheel YI-UF0's Bottomless Matter Pit Light Armor Plating Thief Drone Bay (3/3) Heavy Assault Rifle Autogun Autogun Autogun Grenade Launcher YI-UF0's Doublenader Peak State ------------ > --- POWER ------------ Ion Engine > --- PROPULSION ------- Light Treads Wheel > --- UTILITY ---------- Large Storage Unit Thief Drone Bay > --- WEAPON ----------- Heavy Assault Rifle Autogun > --- INVENTORY -------- Light Ion Engine Light Nuclear Core Light Treads Light Treads Light Treads Light Treads Compact Wheel YI-UF0's Bottomless Matter Pit Light Armor Plating EM Pulse Gun Autogun Autogun Autogun Grenade Launcher YI-UF0's Doublenader [Rating: 17] Favorites ----------- Power Ion Engine Engine Ion Engine Propulsion Wheel Treads Light Treads Wheel Wheel Utility Heat Sink Device Heat Sink Storage Large Storage Unit Weapon Assault Rifle Energy Gun EM Pulse Gun Ballistic Gun Assault Rifle Launcher Grenade Launcher Build | -11 -10 -10 ------- Run | Scr Mat Min Slots Evolved . | . . . Power . | . . . Propulsion . | . . . Utility . | . . . Weapon . | . . . Parts Attached 39 | 6 22 11 Power 3 | 1 1 1 Engine 3 | 1 1 1 Core . | . . . Reactor . | . . . Propulsion 11 | 2 8 1 Treads 8 | 1 6 1 Leg . | . . . Wheel 3 | 1 2 . Hover . | . . . Flight . | . . . Utility 8 | 1 5 2 Device 6 | . 4 2 Storage 2 | 1 1 . Processor . | . . . Hackware . | . . . Protection . | . . . Artifact . | . . . Weapon 17 | 2 8 7 Energy Gun 3 | . . 3 Energy Cannon . | . . . Ballistic Gun 13 | 2 8 3 Ballistic Cannon . | . . . Launcher 1 | . . 1 Special Weapon . | . . . Impact Weapon . | . . . Slashing Weapon . | . . . Piercing Weapon . | . . . Special Melee Weapon . | . . . Unidentified Prototypes 1 | . . 1 Parts Lost 2 | . . 2 Power . | . . . Propulsion 1 | . . 1 Utility . | . . . Weapon 1 | . . 1 Highest Loss Streak 1 | . . 1 Average Slot Usage (%) 98 | . 98 99 Engine 14 | . 14 14 Treads 14 | . 13 14 Wheel 13 | . 14 13 Device 13 | . 13 13 Storage 14 | . 14 14 Energy Gun 1 | . . 6 Ballistic Gun 25 | . 27 20 Naked Turns . | . . . Heaviest Build 35 | 14 32 35 Greatest Support 20 | 10 20 10 Greatest Overweight (x) 4 | 1 4 3 Average Overweight (x) 2 | . 1 2 Largest Inventory Capacity 15 | 8 15 15 Average Capacity 12 | 6 11 15 Most Carried 15 | 4 15 15 Average Carried 11 | 2 10 14 Final Capacity 15 | 8 15 15 Final Carried 15 | 4 15 14 Class Distribution -------------------- 80% | Mutant 19% | Scavenger-Mutant Dominant Class ---------------- Mutant | -10/Materials Mutant | -10/Mines Resources | -11 -10 -10 ----------- Run | Scr Mat Min Matter Collected 782 | 228 477 77 Remotely . | . . . Salvage Created 763 | . 530 233 Parts 34 | . 25 9 Haulers Intercepted 2 | . 2 . Recyclers Shooed 3 | . 3 . Parts Field Recycled . | . . . Retrieved Matter . | . . . Parts Self-Destructed . | . . . Prevented . | . . . Kills | -11 -10 -10 ------- Run | Scr Mat Min Combat Hostiles Destroyed 10 | . 8 2 Guns 10 | . 8 2 Classes Destroyed 7 | . 6 1 Hauler 2 | . 2 . Recycler 1 | . 1 . Operator 1 | . 1 . Watcher 3 | . 3 . Swarmer 3 | . 3 . Grunt 5 | . 5 . Sentry 2 | . . 2 Best Kill Streak 3 | . 3 2 Combat Bots Only 3 | . 3 2 Max Kills in Single Turn 2 | . 2 1 Gunslinging 1 | . 1 . Exploded . | . . . Melee . | . . . Uniques/NPCs Destroyed 1 | . . 1 YI-UF0 (-10/Mines) Combat | -11 -10 -10 -------- Run | Scr Mat Min Damage Taken 810 | . 267 543 Core 255 | . 69 186 Absorbed by Shields . | . . . Core Remaining (%) 100 | 100 . . Volleys Fired 64 | . 45 19 Largest 2 | . 2 2 Hottest 80 | . 40 80 Shots Fired 126 | . 89 37 Gun 126 | . 89 37 Cannon . | . . . Launcher . | . . . Special . | . . . Kinetic 100 | . 89 11 Thermal . | . . . Explosive . | . . . Electromagnetic 26 | . . 26 Robot Hit Streak 13 | . 9 13 Robot Miss Streak 5 | . 2 5 Penetration Max . | . . . Secondary Targets 1 | . 1 . Max Gunslinging Chain 1 | . 1 . Shots Hit Robots 91 | . 65 26 Core Hits 38 | . 26 12 Critical Kills . | . . . Critical Parts Destroyed . | . . . Critical Strikes 1 | . . 1 Corrupt 1 | . . 1 Melee Attacks . | . . . Impact . | . . . Slashing . | . . . Piercing . | . . . Sneak Attacks . | . . . Combat Hostiles . | . . . Follow-up Attacks . | . . . Damage Inflicted 1111 | . 804 307 Guns 1111 | . 804 307 Cannons . | . . . Explosions . | . . . Melee . | . . . Ramming . | . . . Kinetic 938 | . 804 134 Thermal . | . . . Explosive . | . . . Electromagnetic 173 | . . 173 Impact . | . . . Slashing . | . . . Piercing . | . . . Highest Corruption 2 | . 2 2 Average Corruption 2 | . 2 2 Corruption Purged . | . . . Effects 8 | . 6 2 Heat Flow Errors 1 | . . 1 Energy Discharges 3 | . 2 1 Data Loss (minor) 3 | . 3 . Weapon Failures 1 | . 1 . Overload Shots . | . . . Overflow Damage . | . . . Projectiles . | . . . Explosions . | . . . Melee . | . . . Knockbacks . | . . . Impact . | . . . Kinetic . | . . . Secondary . | . . . Self-Inflicted Damage . | . . . Shots . | . . . Rammed . | . . . Targets Rammed . | . . . Kicked . | . . . Crushed . | . . . Highest Temperature 243 | . . 243 Average Temperature 70 | . . 70 Received Heat Transfer 150 | . 105 45 Siege Activations . | . . . Robots Corrupted 1 | . . 1 Combat Hostiles . | . . . Parts Fried 4 | . . 4 Impact Corruptions . | . . . Robots Melted . | . . . Combat Hostiles . | . . . Parts Melted . | . . . Heat Transferred . | . . . Parts Sabotaged . | . . . Parts Stolen . | . . . Parts Stripped . | . . . Power Chain Reactions . | . . . Missiles Intercepted . | . . . Alert | -11 -10 -10 ------- Run | Scr Mat Min Peak Influence 212 | . 212 45 Initial . | . . . Average 34 | . 41 20 Maximum Alert Level 1 | . 1 . Low Security (%) 98 | 100 98 100 Level 1 1 | . 1 . Level 2 . | . . . Level 3 . | . . . Level 4 . | . . . Level 5 . | . . . High Security . | . . . Max Security . | . . . Squads Dispatched 2 | . 2 . Investigation 1 | . 1 . Extermination . | . . . Reinforcement 1 | . 1 . Assault . | . . . Garrison . | . . . Intercept . | . . . Construction Impeded . | . . . Haulers Reinforced . | . . . Cargo Convoy Interrupts . | . . . Stealth | -11 -10 -10 --------- Run | Scr Mat Min Distress Signals 2 | . 2 . Communications Jammed . | . . . Distress Signals . | . . . Times Spotted 22 | . 18 4 Peak Tracking Total 4 | . 4 2 Tactical Retreats . | . . . Traps | -11 -10 -10 ------- Run | Scr Mat Min Traps Triggered 6 | . 6 . Indirectly . | . . . Trap Hack Attempts . | . . . Triggered . | . . . Disarmed . | . . . Reprogrammed 4 | . 4 . Reused . | . . . Traps Extracted . | . . . Installed . | . . . Triggered 1 | . . 1 Machines | -11 -10 -10 ---------- Run | Scr Mat Min Machines Disabled . | . . . Max in Single Turn . | . . . Machines Sabotaged . | . . . Garrisons Compromised . | . . . Overloaded Fab Kills . | . . . Fab Network Shutdowns . | . . . Hacking | -11 -10 -10 --------- Run | Scr Mat Min Machines Accessed 9 | . 8 1 Terminals 7 | . 7 . Fabricators . | . . . Repair Stations 1 | . 1 . Recycling Units . | . . . Scanalyzers . | . . . Garrison Access . | . . . Total Hacks 30 | . 29 1 Successful 19 | . 18 1 Failed 11 | . 11 . Catastrophic . | . . . Database Lockouts . | . . . Manual 17 | . 17 . Terminals 24 | . 24 . Fabricators . | . . . Repair Stations 5 | . 5 . Recycling Units . | . . . Scanalyzers . | . . . Garrison Access . | . . . Terminal Hacks 10 | . 9 1 Record 1 | . 1 . Robot Analysis 1 | . 1 . Prototype ID Bank 2 | . 2 . Open Door 1 | . . 1 Unreport Threat 1 | . 1 . Locate Traps 2 | . 2 . Reprogram Traps 1 | . 1 . Zone Layout 1 | . 1 . Fabricator Hacks . | . . . Repair Station Hacks 3 | . 3 . Scan Component 2 | . 2 . Repair 1 | . 1 . Recycling Unit Hacks . | . . . Scanalyzer . | . . . Garrison Access Hacks . | . . . Unauthorized Hacks 6 | . 6 . Terminals 6 | . 6 . Track 2 | . 2 . Botnet 4 | . 4 . Fabricators . | . . . Repair Stations . | . . . Recycling Units . | . . . Scanalyzers . | . . . Garrison Access . | . . . Data Cores Recovered . | . . . Used . | . . . Hacking Detections 8 | . 8 . Full Trace Events . | . . . Feedback Events . | . . . Feedback Blocked . | . . . Robot Schematics Acquired . | . . . Robots Built . | . . . Matter . | . . . Time . | . . . Total Robot Build Rating . | . . . Part Schematics Acquired . | . . . Parts Built . | . . . Matter . | . . . Time . | . . . Total Part Build Rating . | . . . Parts Repaired 1 | . 1 . Time 26 | . 26 . Parts Recycled . | . . . Recycled Matter . | . . . Retrieved Matter . | . . . Retrieved Components . | . . . Parts Scanalyzed . | . . . Part Schematics Acquired . | . . . Parts Damaged . | . . . Bothacking | -11 -10 -10 ------------ Run | Scr Mat Min Used RIF Installer . | . . . Robots Hacked . | . . . Non-combat . | . . . Combat . | . . . Robot Hacks Applied . | . . . Relay Couplers Released . | . . . Robots Rewired . | . . . Allies Hacked . | . . . Hacks Repelled . | . . . Allies | -11 -10 -10 -------- Run | Scr Mat Min Total Allies . | . . . Largest Group . | . . . Highest-Rated Group . | . . . Highest-Rated Ally . | . . . Total Orders 1 | . . 1 RETURN 1 | . . 1 Ally Attacks . | . . . Total Damage . | . . . Kills . | . . . Allies Corrupted . | . . . Allies Melted . | . . . Intel | -11 -10 -10 ------- Run | Scr Mat Min Robot Analysis Total 1 | . 1 . Derelict Logs Recovered 1 | . . 1 Drone Launches 1 | . . 1 Drone Recoveries 1 | . . 1 Exploration | -11 -10 -10 ------------- Run | Scr Mat Min Turns Passed 1901 | 50 1310 541 Spaces Moved 1317 | 44 944 329 Core 2 | 1 1 . Treads 1 | . 1 . Legs . | . . . Wheels 1314 | 43 942 329 Hover . | . . . Flight . | . . . Fastest Speed 50 | 50 95 110 Average Speed 110 | 86 108 121 Slowest Speed 250 | 95 250 125 Overloaded Moves . | . . . Propulsion Burnouts . | . . . Robots Hopped . | . . . Cave-ins Triggered . | . . . Exploration Rate (%) 52 | 4 94 59 Regions Visited 2 Branch Regions 1 Pre-discovered Areas . | . . . Known Exits Taken . | . . . Unknown Exits Taken 2 | 1 1 . Scrap Searched . | . . . Spaces Dug . | . . . Terrain Destroyed . | . . . Melee . | . . . Projectile . | . . . AOE . | . . . Terrain Rammed . | . . . Walls Destroyed . | . . . Machines Disabled . | . . . Actions | -11 -10 -10 --------- Run | Scr Mat Min Total 1638 | 53 1149 436 Wait 167 | . 104 63 Move 1315 | 43 943 329 Hop . | . . . Pick Up 28 | 4 18 6 Fast Attach 18 | 6 10 2 Attach 2 | . . 2 Detach . | . . . Swap 19 | . 12 7 Drop 25 | . 17 8 Fire 64 | . 45 19 Melee . | . . . Ram . | . . . Kick . | . . . Crush . | . . . Escape Stasis . | . . . Rewire . | . . . Trap . | . . . Miscellaneous . | . . . Route ------- -11/Scrapyard -10/Materials (discovered 5 exits: [*Mat x3] / *Min x2) -10/Mines History --------- Turn | Location | Event 27 | -11/Scrapyard | Discovered new exit (range 15) 51 | -11/Scrapyard | Entered Materials 244 | -10/Materials | Repaired Assault Rifle 319 | -10/Materials | Build established: Mutant 503 | -10/Materials | Discovered new exit (range 7) 541 | -10/Materials | Discovered new exit (range 8) 777 | -10/Materials | Discovered new exit (range 15) 936 | -10/Materials | Build established: Scavenger-Mutant 1013 | -10/Materials | Discovered new exit (range 14) 1255 | -10/Materials | Discovered new exit (range 16) 1305 | -10/Materials | Build established: Mutant 1361 | -10/Materials | Entered Mines 1362 | -10/Mines | YI-UF0 nonchalantly dropped a Grenade Launcher on the ground 1428 | -10/Mines | Destroyed YI-UF0 1437 | -10/Mines | Found Corrupted Prototype Storage 1441 | -10/Mines | Found Corrupted Prototype Launcher 1806 | -10/Mines | Found the Drone Emporium 1813 | -10/Mines | Found Prototype Device 1813 | -10/Mines | Identified Thief Drone Bay 1837 | -10/Mines | Assembled infested the area 1848 | -10/Mines | Learned 2 Materials zone layouts 1891 | -10/Mines | Core integrity fell below 50% 1895 | -10/Mines | Core integrity fell below 20% 1902 | -10/Mines | Destroyed by D-53 Grenadier with Mini Grenade Launcher Last Messages --------------- 01808_ WJ-U59(g): "I'm a fan of the free market. Free drones for all! No strings attached!" 01813_ Dropped Heat Sink. 01813_ Acquired Prototype Device. 01813_ Identified Thief Drone Bay. 01816_ Thief Drone released from Thief Drone Bay. 01817_ Thief Drone retrieved by Thief Drone Bay. 01819_ Dropped Thief Drone Bay. 01820_ Acquired Heat Sink. 01822_ Dropped Lgt. Treads. 01823_ Acquired Thief Drone Bay. 01837_ ALERT: Infestation in the mines, dispatching Demolisher response squad. 01848_ Acquired derelict log, extracted data. Data stored: Materials zone layouts (x2). 01890_ C-30 ARC bursts open, deploying its payload. 01890_ D-53 Grenadier unfolds itself. 01896_ D-53 Grenadier destroyed. 01896_ Wheel destroyed. 01900_ The unstable cave ceiling collapses. Map ----- +----------------------------------------------------+ | ?????????????????????????????????????? | | ?????????????????????????????????????? | | ?????????????????????????????????????? | | ?????????????????????????????????????? | | ?????????????????????????????????????? | | ?????????????????????????????????????? | | ?????????????????????????????????????? | | ?????????????????????????????????????? | | ?????????????????????????????????????? | | ????????########### #????????????????? | | ????????# #????????????????? | | ????????# #### #####????????????????? | | ????????# #??# #????????????????????? | | ????????# #??# #????????????????????? | | ???????## ##?# #????????????????????? | | ???????# ### #????????????????????? | | ???????# #????????????????????? | | ???????# ####????????????????????? | | ???????# ##??????????????????????? | | ?####### #??????????????????????? | | ##""## ###????????????????????? | | #" #X ##???????????????????? | | #" # ##??????????????????? | | #" # d #?###??????????????? | | #" =# ## ###????????????? | | ##""## @ # ##???????????? | | ?###### ##??????????? | | ??????## #??????????? | | ???????## ## #???????? | | ????????### ##????? ?????????? | | ??????????###### ##????????????????? | | ???????????????## ##?????????????????? | | ????????????????# #??????????????????? | | ????????????????# #??????????????????? | | ???#########????# #??????????????????? | | ???# ####?# #??????????????????? | | ???# !!! #?# #??????????????##### | | ???# # #?# #????????????### # | | ???# ! ! # #?# #??????# ???## | | ???# !!! # #?# #??????# ### | | ???# # ### #??????# | | ???# # #??????# ## | | ???######### #####??????###### #### | | ???????????# ##########????## #??# | | ???????????# #???## #??# | | ???????????# ######## #??## ##??? | | ???????????# #??????# #### ##???# | | ???????????# #??????# #???# | | ???????????# #??????####### #???# | | ???????????# #????????????## ##???## | +----------------------------------------------------+ Best States ------------- Heat Dissipation 35 Energy Generation 10 Energy Capacity 250 Matter Stores 300 Matter Capacity 300 Sight Range 16 Terrain Scan Density 10 Evasion (%) 44 Recoil Reduction 2 Item Schematics ----------------- None Robot Schematics ------------------ None Fabricated ------------ Nothing Alien Tech Used ----------------- None Achievements -------------- None Challenges ------------ None Game ------ Seed CoolantFissionDisintegrator Manual? 0 Play Time 00:14:26 Cumulative 1040.4 hours Start 2021.06.08 @ 14:57:40 End 2021.06.08 @ 15:11:03 Sessions 1 Manual Loads 0 Difficulty Rogue Special Mode None Game No. 794 Rogue 754 Adventurer 40 Explorer 0 Win Type - Total 119 Types 60/4/33/2/1/4/13/1/1 Lore% 92 Gallery% 96 Achievement% 79 Wizard Run 0 Options --------- ASCII 0 Keyboard 0 Movement Numpad Keybinds 0 Fullscreen 0 Font 20/Terminus Map View 76x50 Tactical HUD 1 Map Filters NONE Filters NONE Steam 1 RUN: acc460a2-30d3-4c78-aed3-8c8802ebfe12